lending/lending_fUSD_20240130
["ID","MTS","AMOUNT","RATE_DAILY","PERIOD"]
[313012453,1706616638654,-488.46642313,0.00022942,2]
[313012454,1706616638663,-152.49990297,0.00022949,2]
[313012455,1706616638672,-596.70798514,0.00022949,2]
[313012456,1706616638681,-488.46642313,0.00022949,2]
[313012457,1706616638690,-159.45309107,0.00022997,2]
[313012458,1706616638699,-14848.38086482,0.00022997,2]
[313012459,1706616638708,-242.66834507,0.00022997,2]
[313012460,1706616638717,-235.70482788,0.00022997,2]
[313012461,1706616638727,-6006.28495536,0.00022997,2]
[313012462,1706616638737,-449.34661238,0.00022997,2]
[313012463,1706616638746,-3864.87361765,0.00022997,2]
[313012464,1706616638757,-210.0,0.00022997,2]
[313012465,1706616638766,-530.13408549,0.00022997,2]
[313012466,1706616638776,-4279.24092321,0.00022997,2]
[313012467,1706616638785,-341.58860285,0.00022997,2]
[313012468,1706616638794,-2782.5711225,0.00022997,2]
[313012469,1706616638803,-498.43556061,0.00022997,2]
[313012470,1706616638812,-534.84994698,0.00022998,2]
[313012471,1706616638821,-533.3554065,0.00022998,2]
[313012472,1706616638830,-266.13518399,0.00022998,2]
[313012473,1706616638839,-216.14257406,0.00022998,2]
[313012474,1706616638848,-762.14290771,0.00022998,2]
[313012475,1706616638858,-229.03178902,0.00022998,2]
[313012476,1706616638868,-155.0,0.00022999,2]
[313012477,1706616638877,-1374.81657454,0.00022999,2]
[313012478,1706616638886,-4329.24736324,0.00022999,2]
[313012479,1706616638896,-2908.79233144,0.00022999,2]
[313012480,1706616638905,-279.99458956,0.00022999,2]
[313012481,1706616638915,-768.55606507,0.00022999,2]
[313012482,1706616638924,-3305.32624244,0.00022999,2]
[313012483,1706616638934,-260.75269255,0.00022999,2]
[313012484,1706616638943,-368.00438583,0.00022999,2]
[313012485,1706616638952,-334.96955929,0.00022999,2]
[313012486,1706616638962,-831.93533236,0.00023,2]
[313012487,1706616638972,-415958.81654456,0.00023,2]
[313012488,1706616638983,-1773645.61940083,0.00023,2]
[313012489,1706616639228,-240540.17119662,0.00023,2]
[313012490,1706616639239,-7218.08411746,0.00023,2]
[313012491,1706616639250,-292.8057891,0.00023,2]
[313012492,1706616639262,-924.48604397,0.00023,2]
[313012493,1706616639273,-4099.87793366,0.00023,2]
[313012494,1706616639311,-817.52,0.00023,2]
[313012495,1706616639324,-19612.87815224,0.00023,2]
[313012496,1706616639335,-397.99319735,0.00023,2]
[313012497,1706616639347,-2966.31717567,0.00023,2]
[313012498,1706616639359,-399.13216622,0.00023,2]
[313012499,1706616639370,-808.75030777,0.00023,2]
[313012500,1706616639381,-741.27723955,0.00023,2]
[313012501,1706616639393,-420.8888349,0.00023,2]
[313012502,1706616639409,-997.78848001,0.00023,2]
[313012503,1706616639423,-716.637915,0.00023,2]
[313012506,1706616640767,-10749.18283097,0.00023,2]
[313012507,1706616640779,-8204.43989874,0.00023,2]
[313012508,1706616640830,-2013.74442328,0.00023,2]
[313012509,1706616640842,-1965.22518968,0.00023,2]
[313012510,1706616640853,-3760.18701428,0.00023,2]
[313012511,1706616640887,-1611.4,0.00023,2]
[313012545,1706616642908,-363.3463005,0.00023,2]
[313012546,1706616642961,-1413.01804533,0.00023,2]
[313012547,1706616642974,-251.9428799,0.00023,2]
[313012548,1706616642987,-9175.39406633,0.00023,2]
[313012559,1706616647331,-707.74103951,0.00022999,2]
[313012560,1706616647343,-292.25896049,0.00022999,2]
[313012561,1706616647352,-2026.04072466,0.00023,2]
[313012562,1706616647494,-51820.9838586,0.00023,2]
[313012563,1706616647505,-4354.634448,0.00023,2]
[313012564,1706616647579,-42696.71954827,0.00023,2]
[313012565,1706616647591,-59766.28440045,0.00023,2]
[313012568,1706617221391,306.79,0.00021278,2]
[313012569,1706617446628,-246.0,0.00022814,2]
[313012570,1706617446657,-150.0,0.00022814,2]
[313012571,1706617446685,-1000.0,0.00022815,2]
[313012572,1706617446712,-533.56145808,0.00022815,2]
[313012573,1706617446741,-200.0,0.00022815,2]
[313012574,1706617446769,-800.0,0.00022815,2]
[313012575,1706617446793,-200.0,0.00022816,2]
[313012576,1706617446819,-800.0,0.00022816,2]
[313012577,1706617446850,-200.0,0.00022816,2]
[313012578,1706617446877,-200.0,0.00022816,2]
[313012579,1706617446906,-155.53582091,0.00022884,2]
[313012580,1706617446934,-151.8543292,0.000229,2]
[313012581,1706617446961,-332.5639794,0.000229,2]
[313012582,1706617446988,-162.10429849,0.00022998,2]
[313012583,1706617447018,-502.41371894,0.00022998,2]
[313012584,1706617447045,-940.59750266,0.00022998,2]
[313012585,1706617447074,-1043.4337919,0.00022998,2]
[313012586,1706617447101,-2901.94836539,0.00022998,2]
[313012587,1706617447129,-1470.45176422,0.00022999,3]
[313012588,1706617447156,-2145.70782558,0.00022999,2]
[313012589,1706617447182,-155.37256581,0.00022999,2]
[313012590,1706617447214,-433.15155992,0.00022999,2]
[313012591,1706617447242,-3305.32624244,0.00022999,2]
[313012592,1706617447272,-11969.97677706,0.00022999,2]
[313012610,1706617641122,-533.14935492,0.00022998,2]
[313012611,1706617641142,-150.31402674,0.00022998,2]
[313012617,1706617679540,200.0,0.000223,8]
[313012618,1706617681646,500.0,0.000224,8]
[313012619,1706617683755,800.0,0.000225,8]
[313012620,1706617685854,1000.0,0.000226,8]
[313012621,1706617687953,1300.0,0.000227,8]
[313012622,1706617690053,200.0,0.000228,8]
[313012623,1706617692764,200.0,0.000229,8]
[313012673,1706617831797,-150.0,0.00022899,2]
[313012674,1706617831808,-753.03590483,0.00022998,3]
[313012675,1706617831818,-282.83753318,0.00022998,2]
[313012676,1706617831828,-738.24365229,0.00022998,2]
[313012677,1706617831838,-970.29951784,0.00022998,2]
[313012678,1706617831847,-1066.62445612,0.00022999,2]
[313012679,1706617831859,-2238.70178632,0.00022999,2]
[313012680,1706617831869,-20400.95941805,0.00022999,2]
[313012681,1706617831881,-567.0516138,0.00022999,2]
[313012682,1706617831893,-757.09086502,0.00022999,2]
[313012683,1706617831904,-1250.9961,0.00022999,2]
[313012684,1706617831916,-4012.81481841,0.00022999,2]
[313012686,1706617834044,-759.8606458,0.00022999,2]
[313012687,1706617834115,-849.08324174,0.00022999,2]
[313012688,1706617834128,-579.875,0.00022999,2]
[313012689,1706617834139,-576.32490571,0.00022999,2]
[313012690,1706617834151,-250.0,0.00022999,2]
[313012691,1706617834163,-917.62,0.00022999,2]
[313012692,1706617834196,-1721.9738624,0.00022999,2]
[313012693,1706617834208,-2464.18460252,0.00022999,2]
[313012694,1706617834219,-399.2023011,0.00022999,2]
[313012695,1706617834231,-558.52308031,0.00022999,2]
[313012696,1706617834246,-6446.81740078,0.00022999,2]
[313012748,1706617839844,-10587.51931422,0.00022999,2]
[313012750,1706617839853,-3305.32624244,0.00022999,2]
[313012752,1706617839863,-499.99,0.00023,2]
[313012754,1706617839872,-415.96766618,0.00023,2]
[313012756,1706617839881,-1112.21944855,0.00023,3]
[313012758,1706617839890,-2173683.413274,0.00023,2]
[313012760,1706617839901,-240540.17119662,0.00023,2]
[313012763,1706617839912,-87396.56935902,0.00023,2]
[313012766,1706617839932,-826.58,0.00023,2]
[313012770,1706617839963,-318.0177,0.00023,2]
[313012772,1706617839974,-8077.13327608,0.00023,2]
[313012774,1706617839985,-15016.443398,0.00023,2]
[313012798,1706617840463,-88602.62777908,0.00023,2]
[313012799,1706617840474,-4078.89009634,0.00023,2]
[313012800,1706617840489,-3499.95628,0.00023,2]
[313012801,1706617841201,-60177.39908431,0.00023,2]
[313012802,1706617841216,-1908.6322758,0.00023,2]
[313012803,1706617841227,-3504.48882688,0.00023,2]
[313012804,1706617841238,-4356.9,0.00023,2]
[313012805,1706617841324,-33509.99241231,0.00023,2]
[313012866,1706617842849,-1683.14118233,0.00023,2]
[313012872,1706617842919,-2833.88768413,0.00023,2]
[313012875,1706617842931,-32507.82785537,0.00023,2]
[313012877,1706617842942,-7620.14803655,0.00023,2]
[313012879,1706617842955,-539.92621197,0.00023,2]
[313012881,1706617842966,-25704.36361849,0.00023,2]
[313012883,1706617842977,-9498.10814416,0.00023,2]
[313012888,1706617843015,-10308.61006027,0.00023,2]
[313012896,1706617843083,-43681.14225864,0.00023,2]
[313012902,1706617843136,-999.13780481,0.00023,2]
[313012937,1706617845802,-534.0,0.00022999,2]
[313012938,1706617845873,-2771.32624244,0.00022999,2]
[313012939,1706617845882,-5816.87485546,0.00023,2]
[313012940,1706617845893,-1941.46549618,0.00023,2]
[313012941,1706617845944,-8719.8048,0.00023,2]
[313012942,1706617845957,-2183.20000001,0.00023,2]
[313012957,1706617846274,-21187.99999999,0.00023,2]
[313012959,1706617846289,-34994.38256015,0.00023,2]
[313012961,1706617846301,-512.2726247,0.00023,2]
[313013026,1706617882901,600.0,0.000223,8]
[313013027,1706617884995,1200.0,0.000224,8]
[313013028,1706617887104,1800.0,0.000225,8]
[313013029,1706617889277,2500.0,0.000226,8]
[313013030,1706617891343,3100.0,0.000227,8]
[313013031,1706617893483,600.0,0.000228,8]
[313013032,1706617895619,600.0,0.000229,8]
[313013033,1706617995494,557.94172194,0.00022078,2]
[313013034,1706618058202,500.0,0.00021884,2]
[313013035,1706618059318,167.7,0.00021884,2]
[313013063,1706618096585,496.49,0.00019966,2]
[313013064,1706618096640,496.49,0.0002223,2]
[313013065,1706618160023,763.69,0.00021886,2]
[313013066,1706618166700,625.84,0.00021885,2]
[313013075,1706618180220,2573.38,0.00021882,2]
[313013076,1706618195614,670.1,0.00021885,2]
[313013077,1706618197471,-1016.8091,0.00022517,2]
[313013078,1706618218998,250.0,0.00021887,2]
[313013080,1706618277173,334.07,0.00021887,2]
[313013081,1706618300503,160.01,0.00022051,2]
[313013082,1706618354224,166.05,0.0002188,2]
[313013083,1706618355622,200.0,0.0002188,2]
[313013084,1706618373566,402.21,0.00021881,2]
[313013085,1706618392702,160.45280182,0.00022534,2]
[313013086,1706618395617,223.7949929,0.0002188,2]
[313013087,1706618400453,150.0,0.00022,2]
[313013088,1706618461064,214.60310528,0.0002188,2]
[313013089,1706618461085,3749.17689472,0.0002188,2]
[313013090,1706618475559,355.68,0.0002188,2]
[313013091,1706618501781,163.73,0.00021884,2]
[313013092,1706618550094,446.84,0.00019974,2]
[313013093,1706618550330,446.84,0.00022238,2]
[313013095,1706618635547,521.53,0.00021878,2]
[313013096,1706618719826,335.05,0.00021878,2]
[313013097,1706618733816,206.0,0.00021776,2]
[313013098,1706618750758,250.0,0.0002188,2]
[313013099,1706618798137,200.0,0.00021875,2]
[313013100,1706618808133,183.23,0.00021827,2]
[313013101,1706618836094,-867.75377017,0.00022635,2]
[313013102,1706618866392,3277.58,0.00021825,2]
[313013103,1706618873136,1000.0,0.00021875,2]
[313013104,1706618974485,402.15,0.00019909,2]
[313013105,1706618974751,402.15,0.00022173,2]
[313013106,1706619019770,251.78372974,0.00022,2]
[313013111,1706619031951,-337.0,0.00022534,2]
[313013112,1706619031961,-119.42450749,0.00022535,2]
[313013113,1706619031977,-499.39583585,0.00022535,2]
[313013114,1706619031986,-566.58530483,0.00022635,2]
[313013115,1706619031995,-3959.980118,0.00022669,2]
[313013116,1706619032004,-150.0,0.00022728,2]
[313013117,1706619032014,-725.53,0.00022736,2]
[313013118,1706619032023,-721.57,0.00022738,2]
[313013119,1706619032032,-150.0,0.0002274,2]
[313013120,1706619032041,-721.36,0.0002274,2]
[313013121,1706619032050,-9999.99,0.00022741,2]
[313013122,1706619032059,-389.11,0.00022744,2]
[313013123,1706619032069,-499.99,0.00022744,2]
[313013124,1706619032079,-736.47,0.00022744,2]
[313013125,1706619032088,-150.0,0.00022748,2]
[313013126,1706619032098,-732.66,0.00022751,2]
[313013127,1706619032107,-150.0,0.00022758,2]
[313013128,1706619032117,-125.98623396,0.00022758,2]
[313013129,1706619032140,-68.93455327,0.00022758,2]
[313013130,1706619032149,-150.0,0.00022763,2]
[313013131,1706619032158,-150.0,0.00022768,2]
[313013132,1706619032168,-155.0,0.00022768,2]
[313013133,1706619032179,-150.0,0.00022771,2]
[313013134,1706619032188,-150.0,0.00022783,2]
[313013135,1706619032197,-155.53582091,0.00022784,2]
[313013136,1706619032206,-150.0,0.00022784,2]
[313013137,1706619032215,-150.0,0.00022784,2]
[313013138,1706619032224,-150.0,0.00022787,2]
[313013139,1706619032233,-150.0,0.00022792,2]
[313013140,1706619032243,-150.0,0.00022793,2]
[313013141,1706619032253,-150.0,0.00022795,2]
[313013142,1706619032262,-150.0,0.00022796,2]
[313013148,1706619032460,-150.0,0.00022798,2]
[313013149,1706619032470,-360.1584,0.000228,2]
[313013150,1706619032479,-150.0,0.00022805,2]
[313013151,1706619032488,-150.0,0.0002281,2]
[313013152,1706619032497,-150.0,0.00022812,2]
[313013153,1706619032506,-234.032878,0.00022816,2]
[313013154,1706619032516,-800.0,0.00022816,2]
[313013155,1706619032526,-200.0,0.00022816,2]
[313013156,1706619032536,-150.0,0.00022826,2]
[313013157,1706619032545,-150.0,0.00022838,2]
[313013158,1706619032554,-150.0,0.00022852,2]
[313013159,1706619032563,-150.0,0.00022875,2]
[313013160,1706619032572,-150.0,0.00022876,2]
[313013161,1706619032581,-150.0,0.00022878,2]
[313013162,1706619032590,-150.0,0.0002288,2]
[313013163,1706619032600,-150.0,0.00022881,2]
[313013164,1706619032609,-150.0,0.00022882,2]
[313013165,1706619032619,-96.10088545,0.00022885,2]
[313013166,1706619032632,-903.89911455,0.00022885,2]
[313013167,1706619032642,-1000.0,0.00022885,2]
[313013168,1706619032652,-1000.0,0.00022885,2]
[313013169,1706619032661,-1000.0,0.00022885,2]
[313013170,1706619032672,-1000.0,0.00022885,2]
[313013171,1706619032682,-1000.0,0.00022885,2]
[313013172,1706619032692,-1000.0,0.00022885,2]
[313013173,1706619032704,-1000.0,0.00022885,2]
[313013174,1706619032714,-180.3842,0.00022885,2]
[313013175,1706619032725,-300.0,0.00022889,2]
[313013176,1706619032734,-150.0,0.00022891,2]
[313013177,1706619032745,-150.0,0.00022892,2]
[313013178,1706619032754,-150.0,0.00022896,2]
[313013179,1706619032763,-150.0,0.00022897,2]
[313013180,1706619032772,-2145.70782558,0.00022898,2]
[313013181,1706619032782,-940.59750266,0.00022898,2]
[313013182,1706619032791,-1043.4337919,0.00022898,2]
[313013183,1706619032802,-162.10429849,0.00022898,2]
[313013184,1706619032811,-502.41371894,0.00022898,2]
[313013185,1706619032821,-283.25292485,0.00022898,2]
[313013186,1706619032830,-155.37256581,0.00022899,2]
[313013187,1706619032840,-2901.94836539,0.00022899,2]
[313013188,1706619032849,-191.55963224,0.000229,2]
[313013189,1706619032858,-3429.9052,0.000229,2]
[313013190,1706619032868,-995.04561272,0.000229,2]
[313013191,1706619032905,-518.5775685,0.000229,2]
[313013192,1706619032920,-787.62779356,0.000229,2]
[313013193,1706619032932,-2173.7217,0.000229,2]
[313013194,1706619032947,-525.02732522,0.000229,2]
[313013195,1706619032957,-6713.9591,0.000229,2]
[313013196,1706619032966,-151.82200964,0.000229,2]
[313013197,1706619032975,-9292.0224194,0.000229,2]
[313013198,1706619032987,-2828.33470494,0.000229,2]
[313013199,1706619032998,-647.80435642,0.000229,2]
[313013200,1706619033010,-87231.83851924,0.000229,2]
[313013201,1706619033019,-9977.2858,0.000229,2]
[313013202,1706619033029,-381.89311052,0.000229,2]
[313013203,1706619033039,-6413.96837864,0.000229,2]
[313013204,1706619033063,-4408.12627994,0.000229,2]
[313013205,1706619033091,-433.66,0.000229,2]
[313013218,1706619038417,-276.11925529,0.000228,2]
[313013219,1706619038573,-9139.25514471,0.000228,2]
[313013220,1706619038582,-39962.69484142,0.000229,2]
[313013221,1706619038592,-2500.0,0.000229,2]
[313013222,1706619038602,-684.45115512,0.000229,2]
[313013223,1706619038611,-262.50792906,0.000229,2]
[313013224,1706619038621,-150.0,0.00022901,2]
[313013225,1706619038631,-150.0,0.00022903,2]
[313013226,1706619038640,-150.0,0.00022914,2]
[313013227,1706619038650,-150.0,0.00022916,2]
[313013228,1706619038659,-150.0,0.0002292,2]
[313013229,1706619038669,-150.0,0.0002292,2]
[313013230,1706619038681,-150.0,0.00022925,2]
[313013231,1706619038690,-150.0,0.00022925,2]
[313013232,1706619038701,-150.0,0.00022927,2]
[313013233,1706619038711,-150.0,0.00022928,2]
[313013234,1706619038723,-150.0,0.00022929,2]
[313013235,1706619038733,-150.0,0.00022933,2]
[313013236,1706619038743,-150.0,0.00022934,2]
[313013237,1706619038753,-150.0,0.00022935,2]
[313013238,1706619038763,-150.0,0.00022935,2]
[313013239,1706619038773,-150.0,0.00022937,2]
[313013240,1706619038786,-150.0,0.00022941,2]
[313013241,1706619038798,-150.0,0.00022941,2]
[313013242,1706619038808,-150.0,0.00022943,2]
[313013243,1706619038818,-150.0,0.00022946,2]
[313013244,1706619038828,-150.0,0.00022956,2]
[313013245,1706619038839,-150.0,0.00022956,2]
[313013246,1706619038849,-150.0,0.0002296,2]
[313013247,1706619038858,-150.0,0.00022967,2]
[313013248,1706619038868,-150.0,0.0002297,2]
[313013249,1706619038877,-166.05,0.00022974,2]
[313013250,1706619038888,-150.0,0.00022981,2]
[313013251,1706619038898,-150.0,0.00022987,2]
[313013253,1706619038908,-335.1309015,0.00022998,2]
[313013254,1706619038917,-292.25896049,0.00022998,2]
[313013255,1706619038928,-1772.97059732,0.00022998,2]
[313013256,1706619038937,-500.0,0.00022998,2]
[313013257,1706619038946,-283.73145253,0.00022998,2]
[313013258,1706619038955,-150.0,0.00022998,2]
[313013259,1706619038964,-150.0,0.00022998,2]
[313013261,1706619038974,-3305.32624244,0.00022999,2]
[313013263,1706619038983,-428.71667088,0.00022999,5]
[313013265,1706619038993,-147942.894722,0.00023,2]
[313013267,1706619039002,-2599.88218869,0.00023,2]
[313013269,1706619039011,-716.35,0.00023,2]
[313013271,1706619039021,-709.53,0.00023,2]
[313013273,1706619039030,-7507814.47457056,0.00023,2]
[313013276,1706619039043,-240540.17119662,0.00023,2]
[313013289,1706619039156,-283.31909632,0.00023,2]
[313013291,1706619039167,-394.11641022,0.00023,2]
[313013367,1706619043228,-332.5639794,0.000229,2]
[313013370,1706619043238,-2124.53226997,0.00022999,2]
[313013373,1706619043250,-1161.504032,0.00022999,2]
[313013377,1706619043259,-609.72180861,0.00023,2]
[313013379,1706619043271,-1321.86465,0.00023,2]
[313013380,1706619043283,-16070.91421936,0.00023,2]
[313013381,1706619043294,-17375.73379297,0.00023,2]
[313013383,1706619043305,-10466.8368,0.00023,2]
[313013385,1706619043316,-2653.70500002,0.00023,2]
[313013386,1706619043327,-10696.79068974,0.00023,2]
[313013387,1706619043388,-6994.31871114,0.00023,2]
[313013388,1706619043399,-1118.38400007,0.00023,2]
[313013389,1706619043480,-1679.045025,0.00023,2]
[313013390,1706619043492,-761.03873948,0.00023,2]
[313013419,1706619048064,235.32325514,0.00022,2]
[313013420,1706619048323,-1047.74719327,0.00022999,2]
[313013421,1706619048333,-77.63980673,0.00022999,2]
[313013422,1706619048386,500.0,0.00022,2]
[313013423,1706619048485,-264.73498884,0.00022999,2]
[313013424,1706619048497,-575.825,0.00022999,2]
[313013425,1706619048741,-724.81835542,0.00022999,2]
[313013426,1706619048750,-49.17923448,0.00023,2]
[313013427,1706619048763,-1296.00160775,0.00023,2]
[313013428,1706619048781,-4528.95972752,0.00023,2]
[313013429,1706619048794,-23070.00000048,0.00023,2]
[313013430,1706619048805,-1247.199999,0.00023,2]
[313013431,1706619048817,-5600.4915964,0.00023,2]
[313013433,1706619050529,1229.37654681,0.00020699,2]
[313013434,1706619050855,162.03710518,0.00020699,2]
[313013435,1706619052132,284.9333869,0.00022,2]
[313013436,1706619052160,1038.64616565,0.00022,2]
[313013437,1706619057262,362.00852423,0.00022,2]
[313013438,1706619060975,156.47869543,0.00022,2]
[313013439,1706619061581,5195.8654879,0.00022,2]
[313013440,1706619065455,312.8751174,0.00022,2]
[313013441,1706619065559,732.32661051,0.00021,2]
[313013443,1706619159934,300.0,0.00022435,2]
[313013448,1706619167700,2557.79368994,0.00021886,2]
[313013449,1706619193777,500.0,0.00021959,2]
[313013450,1706619200291,250.0,0.00021959,2]
[313013453,1706619233272,164.07,0.00021945,2]
[313013454,1706619234998,7771.16144873,0.00021945,2]
[313013455,1706619235024,8947.07855127,0.00021945,2]
[313013458,1706619237338,400.0,0.0002,2]
[313013459,1706619237762,848.51334281,0.00021959,2]
[313013460,1706619239238,150.0,0.00022466,2]
[313013462,1706619252750,4166.48521484,0.00016469,2]
[313013464,1706619257601,5202.33214498,0.00021959,2]
[313013465,1706619262154,1035.68155273,0.00021959,2]
[313013466,1706619265931,1122.3360965,0.00021959,2]
[313013467,1706619268738,4166.48521484,0.00016469,2]
[313013468,1706619286747,3000.0,0.0001685,2]
[313013469,1706619286768,1082.83662493,0.0001685,2]
[313013473,1706619305600,732.18690129,0.00021,2]
[313013474,1706619313913,184.05,0.00017548,2]
[313013477,1706619385776,200.0,0.00021902,2]
[313013478,1706619409722,250.0,0.00021918,2]
[313013479,1706619416700,166.93,0.00021913,2]
[313013480,1706619457826,394.39,0.00019978,2]
[313013481,1706619458147,394.39,0.00022242,2]
[313013482,1706619481738,1402.01,0.00022069,2]
[313013483,1706619524814,192.28,0.00021894,2]
[313013484,1706619524836,824.68,0.00021894,2]
[313013485,1706619604602,548.87,0.00021897,2]
[313013486,1706619617248,288.59,0.00021903,2]
[313013487,1706619630642,250.0,0.00021901,2]
[313013488,1706619637561,176.73,0.00022,2]
[313013489,1706619720427,159.07,0.00022065,2]
[313013490,1706619720610,159.07,0.00022208,2]
[313013491,1706619720862,159.07,0.00022352,2]
[313013492,1706619721094,159.07,0.00022496,2]
[313013493,1706619779965,183.23,0.00021892,2]
[313013494,1706619814221,91.62,0.00021961,2]
[313013495,1706619814241,115.38,0.00021961,2]
[313013496,1706619826229,840.0,0.00021889,2]
[313013497,1706619852646,163.73,0.00021868,2]
[313013498,1706619903601,354.95,0.00019938,2]
[313013499,1706619903804,354.95,0.00022202,2]
[313013500,1706619958729,847.46,0.00021854,2]
[313013501,1706620035754,288.59,0.00021848,2]
[313013502,1706620050097,-671.66350192,0.00022547,2]
[313013503,1706620137612,34.94,0.00021854,2]
[313013504,1706620137638,215.06,0.00021854,2]
[313013505,1706620151273,159.07,0.00022023,2]
[313013506,1706620151441,159.07,0.0002231,2]
[313013512,1706620232198,-390.543,0.00022518,2]
[313013513,1706620232212,-609.457,0.00022518,2]
[313013514,1706620232224,-98.07066815,0.00022519,2]
[313013515,1706620232259,-438.2895,0.00022519,2]
[313013516,1706620232274,-650.35683702,0.00022519,2]
[313013517,1706620232285,-176.73,0.00022548,2]
[313013518,1706620232296,-159.07,0.00022597,2]
[313013519,1706620232307,-150.0,0.00022655,2]
[313013520,1706620232319,-411.34441301,0.00022668,2]
[313013521,1706620232330,-2041.9383,0.00022697,2]
[313013522,1706620232340,-482.732,0.000227,2]
[313013523,1706620232351,-150.0,0.00022756,2]
[313013524,1706620232361,-6066.16,0.00022797,2]
[313013525,1706620232372,-1860.52,0.00022797,2]
[313013526,1706620232383,-1861.12873179,0.00022797,2]
[313013527,1706620232462,-433.425,0.00022797,2]
[313013528,1706620232476,-192.87626821,0.00022797,2]
[313013529,1706620232487,-257.12373179,0.00022798,2]
[313013530,1706620232501,-1738.87626821,0.00022798,2]
[313013531,1706620232512,-499.99,0.00022798,2]
[313013532,1706620232523,-215.22213038,0.00022799,2]
[313013533,1706620232534,-9615.37327364,0.00022799,2]
[313013534,1706620232547,-130456.01957776,0.00022799,2]
[313013535,1706620232558,-500.0,0.000228,2]
[313013536,1706620232570,-5677.7078,0.000228,2]
[313013537,1706620232581,-984.709,0.000228,2]
[313013538,1706620232592,-134.62005278,0.000228,2]
[313013539,1706620232695,-571.30269636,0.000228,2]
[313013565,1706620238222,-69720.61365086,0.000228,2]
[313013566,1706620238231,-1848.8027,0.000228,2]
[313013567,1706620238242,-500.0,0.00022815,2]
[313013568,1706620238251,-200.0,0.00022815,2]
[313013569,1706620238261,-500.0,0.00022815,2]
[313013570,1706620238270,-200.0,0.00022815,2]
[313013571,1706620238279,-500.0,0.00022816,2]
[313013572,1706620238289,-200.0,0.00022816,2]
[313013574,1706620238298,-500.0,0.00022816,2]
[313013575,1706620238308,-500.0,0.00022816,2]
[313013576,1706620238317,-500.0,0.00022816,2]
[313013577,1706620238327,-500.0,0.00022816,2]
[313013578,1706620238337,-500.0,0.00022816,2]
[313013579,1706620238346,-200.0,0.00022816,2]
[313013580,1706620238355,-800.0,0.00022816,2]
[313013581,1706620238365,-200.0,0.00022816,2]
[313013582,1706620238375,-200.0,0.00022816,2]
[313013583,1706620238384,-200.0,0.00022816,2]
[313013584,1706620238393,-150.0,0.00022826,2]
[313013585,1706620238403,-1539.72053772,0.00022826,2]
[313013586,1706620238412,-1539.7205377,0.00022843,2]
[313013587,1706620238422,-1539.7205377,0.00022859,2]
[313013588,1706620238431,-1539.7205377,0.00022876,2]
[313013589,1706620238440,-159.07,0.00022884,2]
[313013590,1706620238449,-1539.7205377,0.00022892,2]
[313013591,1706620238458,-4737.83701109,0.000229,2]
[313013592,1706620238467,-114.7857383,0.000229,2]
[313013593,1706620238485,-37.08828578,0.000229,2]
[313013594,1706620238494,-5000.0,0.000229,2]
[313013595,1706620238504,-305.5144884,0.000229,2]
[313013596,1706620238513,-204.70781597,0.000229,4]
[313013598,1706620238522,-4737.83701109,0.00022902,2]
[313013600,1706620238532,-4737.83701109,0.00022905,2]
[313013601,1706620238542,-4737.83701109,0.00022907,2]
[313013602,1706620238551,-1539.7205377,0.00022909,2]
[313013603,1706620238560,-4737.83701109,0.00022909,2]
[313013604,1706620238569,-305.51448839,0.00022911,2]
[313013605,1706620238578,-4737.83701109,0.00022912,2]